Workbook

Sheet 1-3 года
A1: Утверждаю | H1: Согласовано
A2: Директор ООО"ФУДСОЦСЕРВИС" | H2: Руководитель дошкольной образовательной
A3: Харламова Э.Р. | H3: организации
E5: Примерное 10-дневное меню
E6: для организации питания детей в дошкольных учреждениях
E7: с 8-10,5 - часовым пребыванием от 1 года до 3 лет
A8: День 1 - ый
A9: Наименование блюд и | C9: Масса | D9: Кол - во | E9: Кол - во | F9: Пищевые вещества | I9: Энергетическая | J9: Витамин | K9: Сборник
A10: продуктов | C10: порции | D10: (в гр ) | E10: (в гр ) | I10: ценность | K10: рецептур
D11: брутто | E11: нетто | F11: белки | G11: жиры | H11: угл-ды | I11: Ккал | J11: С
B12: ЗАВТРАК
A13: Каша "Дружба" молочная с маслом сливочным | C13: 140/3 | F13: 4.22 | G13: 4.92 | H13: 23.38 | I13: 155.56 | J13: 0.67 | K13: ТТК №7Д
B14: Крупа рисовая | D14: 10 | E14: 10
B15: Крупа пшенная | D15: 7.5 | E15: 7.5
B16: Молоко | D16: 75 | E16: 75
B17: Вода | D17: 48 | E17: 48
B18: Сахар | D18: 2 | E18: 2
B19: соль иодированная | D19: 0.4 | E19: 0.4
B20: Масло сливочное | D20: 3 | E20: 3
A21: Кофейный напиток с молоком | C21: 180/6 | F21: 2.85 | G21: 2.41 | H21: 5.99 | I21: 42.67 | J21: 1.17 | K21: №414 Дели 2016
B22: Кофейный напиток | D22: 2.5 | E22: 2.5
B23: Сахар | D23: 6 | E23: 6
B24: Молоко | D24: 90 | E24: 90
B25: Вода | D25: 108 | E25: 108
A26: Бутерброд с маслом сливочным | C26: 25/5 | F26: 1.92 | G26: 4.36 | H26: 12.92 | I26: 98.50 | K26: №1 сб дошк Дели2016
B27: Батон нарезной | D27: 25 | E27: 25
B28: Масло сливочное | D28: 5 | E28: 5
A29: Итого: | C29: 359 | F29: =F13+F21+F26 -> 8.99 | G29: =G13+G21+G26 -> 11.69 | H29: 42.29 | I29: 296.73 | J29: 1.84
B30: 2 - ой ЗАВТРАК
A31: Фрукты свежие (яблоки) | C31: 100 | D31: 100 | E31: 100 | F31: 0.40 | G31: 0.40 | H31: 9.80 | I31: 47.00 | J31: 10.00 | K31: №386 дошк СБ
A32: Итого: | C32: 100 | F32: =F31 -> 0.40 | G32: =G31 -> 0.40 | H32: =H31 -> 9.80 | I32: =I31 -> 47.00 | J32: =J31 -> 10.00
B33: ОБЕД
A34: Икра морковная | C34: 30 | F34: 0.6 | G34: 0.03 | H34: 6.17 | I34: 27.36 | K34: ТТК
B35: морковь | D35: 31.30 | E35: 25.00
B36: лук репчатый | D36: 6.00 | E36: 5.00
B37: томатная паста | D37: 4.00 | E37: 4.00
B38: масло растительное | D38: 1.50 | E38: 1.50
B39: сахарный песок | D39: 0.30 | E39: 0.30
B40: соль иодированная | D40: 0.30 | E40: 0.30
A41: Суп вермишелевый с картофелем с мясными фрикадельками | C41: 150/10 | F41: 3.61 | G41: 2.87 | H41: 10.55 | I41: 90.56 | J41: 5.05 | K41: №103 СБ дошк 2016
B42: говядина (котлетное мясо б/к) | D42: 11.9 | E42: 11.4
B43: или фарш говяжий | D43: 11.97 | E43: 11.4
B44: Лук репчатый | D44: 1.19 | E44: 1
B45: Яйцо | D45: 0.96 | E45: 0.8
B46: Вода для фарша | D46: 1 | E46: 1
B47: соль иодированная | D47: 0.1 | E47: 0.1
B48: масса полуфабриката фрикаделек | E48: 14.3
B49: масса готовых фрикаделек | E49: 10
B50: вермишель | D50: 6 | E50: 6
B51: Картофель | D51: 60.00 | E51: 45.00
B52: Морковь | D52: 7.50 | E52: 6.00
B53: Лук репчатый | D53: 7.14 | E53: 6.00
B54: Масло растительное | D54: 1.50 | E54: 1.50
B55: соль иодированная | D55: 0.50 | E55: 0.50
B56: Вода | D56: 105.00 | E56: 105.00
A57: Голубцы ленивые со сметанно-томатным соусом | C57: 110/20 | F57: 8.88 | G57: 9.20 | H57: 18.73 | I57: 179.73 | J57: 0.500 | K57: №314 сб дошк 2016
B58: капуста свежая | D58: 83.4 | E58: 66
B59: говядина (котлетное мясо б/к) | D59: 43.85 | E59: 42
B60: или фарш говяжий | D60: 42 | E60: 42
B61: крупа рисовая | D61: 5.5 | E61: 5.5
B62: масса отварного риса | E62: 15.6
B63: лук репчатый | D63: 10.71 | E63: 9
B64: масло растительное | D64: 2.75 | E64: 2.75
B65: масса припущенного лука | E65: 9
B66: яйцо | D66: 5.4 | E66: 4.5
B67: соль йодированная | D67: 0.55 | E67: 0.55
B68: масса полуфабриката | E68: 127
B69: масло растительное | D69: 0.90 | E69: 0.90
A70: соус сметанно-томатный
B71: мука пшеничная | D71: 1.50 | E71: 1.50
B72: вода | D72: 15.00 | E72: 15.00
B73: сметана | D73: 5.00 | E73: 5.00
B74: томатная паста | D74: 0.80 | E74: 0.80
B75: соль йодированная | D75: 0.20 | E75: 0.20
A76: Напиток из сухофруктов | C76: 150 | F76: 0.50 | G76: 0.07 | H76: 17.34 | I76: 57 | J76: 0.54 | K76: №394 Сб дошк 2016
B77: сухофрукты | D77: 12.75 | E77: 12.50
B78: Сахар | D78: 5.00 | E78: 5.00
B79: вода | D79: 152.00 | E79: 152.00
A80: Хлеб пшеничный | C80: 15 | D80: 15.00 | E80: 15.00 | F80: 1.14 | G80: 0.12 | H80: 7.38 | I80: 35 | J80: 0 | K80: табл 6 стр 134,Дели + 2012
A81: Хлеб ржаной | C81: 35 | D81: 35 | E81: 35 | F81: 2.31 | G81: 0.42 | H81: 13.85 | I81: 69.23 | K81: табл 6 стр 144,Дели + 2012
A82: Итого: | C82: =C81+C80+C76+110+20+160+C34 -> 520 | F82: =F81+F80+F76+F57+F41+F34 -> 17.03 | G82: =G81+G80+G76+G57+G41+G34 -> 12.71 | H82: 74.01 | I82: 458.95 | J82: 6.09
B83: ПОЛДНИК
A84: Котлеты рыбные | C84: 50 | F84: 6.10 | G84: 3.88 | H84: 7.33 | I84: 89.00 | J84: 0.16 | K84: №271 СБ дошк 2016
B85: рыба (минтай с/м БГ) | D85: 45.22 | E85: 33
B86: или фарш рыбный | D86: 34.65 | E86: 33
B87: соль иодированная | D87: 0.5 | E87: 0.5
B88: хлеб пшеничный | D88: 9 | E88: 9
B89: молоко | D89: 12.60 | E89: 12.60
B90: сухари панировочные | D90: 5.00 | E90: 5.00
B91: масса полуфабриката | E91: 58.00
B92: масло растительное | D92: 2.00 | E92: 2.00
A93: Пюре Картофельное | C93: 120 | F93: 2.45 | G93: 3.84 | H93: 16.35 | I93: 109.80 | J93: 14.53 | K93: № 339 СБ дошк 2016
B94: Картофель | D94: 136.80 | E94: 102.60
B95: Молоко | D95: 18.96 | E95: 18.00
B96: Масло сливочное | D96: 4.20 | E96: 4.20
B97: соль иодированная | D97: 0.45 | E97: 0.45
A98: Чай с сахаром | C98: 150/5 | F98: 0.05 | G98: 0.02 | H98: 5.02 | I98: 20.08 | J98: 0.02 | K98: №410,411 сб дошк Дели2016
B99: чай весовой | D99: 0.4 | E99: 0.4
B100: Сахар | D100: 5 | E100: 5
B101: Вода | D101: 150 | E101: 150
A102: Хлеб пшеничный | C102: 20 | D102: 20.00 | E102: 20.00 | F102: 1.52 | G102: 0.16 | H102: 9.84 | I102: 47.00 | J102: 0.00 | K102: табл 6 стр 134,Дели + 2012
A103: Итого: | C103: =C102+155+C93+C84 -> 345 | F103: =F84+F93+F98+F102 -> 10.12 | G103: =G84+G93+G98+G102 -> 7.90 | H103: 38.54 | I103: 265.88 | J103: 14.71
A104: ВСЕГО: | C104: =C103+C82+C32+C29 -> 1324 | F104: =F103+F82+F32+F29 -> 36.55 | G104: =G103+G82+G32+G29 -> 32.70 | H104: 164.64 | I104: 1068.57 | J104: 32.64
A106: День 2- ой
A107: Наименование блюд и | C107: Масса | D107: Кол - во | E107: Кол - во | F107: Пищевые вещества | I107: Энергетическая | J107: Витамин | K107: Сборник
A108: продуктов | C108: порции | D108: (в гр ) | E108: (в гр ) | I108: ценность | K108: рецептур
D109: брутто | E109: нетто | F109: белки | G109: жиры | H109: угл-ды | I109: Ккал | J109: С
B110: ЗАВТРАК
A111: Каша полбяная молочная с маслом сливочным | C111: 140/3 | F111: 3.76 | G111: 6.13 | H111: 22.96 | I111: 162.00 | K111: ТТК №1Д
B112: Крупа полбяная | D112: 18 | E112: 18
B113: Молоко | D113: 75 | E113: 75
B114: вода | D114: 48 | E114: 48
B115: Сахар | D115: 2 | E115: 2
B116: соль иодированная | D116: 0.4 | E116: 0.4
B117: Масло сливочное | D117: 3 | E117: 3
A118: Какао с молоком | C118: 180/6 | F118: 3.67 | G118: 3.19 | H118: 5.99 | I118: 58.83 | J118: 1.43 | K118: №416 Дели2016
B119: Какао-порошок | D119: 2 | E119: 2
B120: Сахар | D120: 6 | E120: 6
B121: Молоко | D121: 110 | E121: 110
B122: Вода | D122: 80 | E122: 80
A123: Бутерброд с сыром, маслом сливочным | C123: 25/10/5 | F123: 4.55 | G123: 7.02 | H123: 12.92 | I123: 132.83 | K123: №3 сб дошк2016
B124: Батон нарезной | D124: 25 | E124: 25
B125: Сыр | D125: 10.2 | E125: 10
B126: Масло сливочное | D126: 5 | E126: 5
A127: Итого: | C127: =25+15+186+143 -> 369 | F127: =F111+F118+F123 -> 11.98 | G127: =G111+G118+G123 -> 16.34 | H127: 41.86 | I127: 353.66 | J127: 1.43
B128: 2 - ой ЗАВТРАК
A129: Кисломолочный напиток | C129: 150/2 | F129: 4.35 | G129: 3.75 | H129: 8.00 | I129: 83.00 | J129: 1.05 | K129: №420 Сб дошк 2016
A130: (Кефир,ряженка,катык) с сахаром | B130: кисломолочный напиток | D130: 155 | E130: 150
B131: сахарный песок | D131: 2 | E131: 2
A132: Итого: | C132: =152 -> 152 | F132: =F129 -> 4.35 | G132: =G129 -> 3.75 | H132: 8.00 | I132: 83.00 | J132: 1.05
B133: ОБЕД
A134: Салат из картофеля с солеными огурцами | C134: 40 | F134: 0.49 | G134: 3.14 | H134: 3.58 | I134: 44.56 | J134: 2.41 | K134: №23 сб дошк2016
B135: огурцы соленые | D135: 21.84 | E135: 12.00
B136: картофель | D136: 21.92 | E136: 16.00
B137: морковь | D137: 10.24 | E137: 8.00
B138: лук репчатый | D138: 2.40 | E138: 2.00
B139: масло растительное | D139: 2.00 | E139: 2.00
A140: Борщ со свежей капустой, картофелем, со сметаной | C140: 150/7 | F140: 1.26 | G140: 4.00 | H140: 6.81 | I140: 73.59 | J140: 6.43 | K140: №88,сб дошк2016
B141: Капуста свежая | D141: 15.0 | E141: 12.0
B142: Картофель | D142: 15.96 | E142: 12.0
B143: Морковь | D143: 7.5 | E143: 6.0
B144: Лук репчатый | D144: 7.14 | E144: 6.0
B145: Свекла | D145: 30.72 | E145: 24.0
B146: Сахар | D146: 1.8 | E146: 1.8
B147: Масло растительное | D147: 3.0 | E147: 3.0
B148: соль иодированная | D148: 0.5 | E148: 0.5
B149: Бульон | D149: 120 | E149: 120.0
B150: Сметана | D150: 7.0 | E150: 7.0
B151: Томатная паста | D151: 0.8 | E151: 0.8
A152: Тефтели куриные запеченные в сметанно-томатном соусе | C152: 40/20 | F152: 4.98 | G152: 5.17 | H152: 5.89 | I152: 90.00 | J152: 0.30 | K152: ТТК 1001 от 10.06.2024
B153: цыплята - бройлеры с/м | D153: 40.0 | E153: 26.0
B154: или фарш куриный | D154: 27.3 | E154: 26.0
B155: хлеб пшеничный | D155: 6.0 | E155: 6.0
B156: Вода | D156: 8.0 | E156: 8.0
B157: Лук репчатый | D157: 9.6 | E157: 8.0
B158: Масло растительное | D158: 1.5 | E158: 1.5
B159: Масса припущенного лука | E159: 6.0
B160: Мука пшеничная | D160: 2.7 | E160: 2.7
B161: Масса полуфабриката | E161: 48.0
B162: Масло растительное | D162: 2.0 | E162: 2.0
B163: масса готовых тефтелей | E163: 40.0
B164: сметанно-томатный соус: | E164: 20.0
B165: сметана | D165: 5.0 | E165: 5.0
B166: Мука пшеничная | D166: 1.5 | E166: 1.5
B167: вода | D167: 15.0 | E167: 15.0
B168: томатная паста | D168: 1.0 | E168: 1.0
B169: соль иодированная | D169: 0.2 | E169: 0.2
A170: Макаронные изделия отварные с маслом сливочным | C170: 110/3 | F170: 4.17 | G170: 2.66 | H170: 23.45 | I170: 134.38 | K170: №219 Сб дошк.2016
B171: макаронные изделия | D171: 38.5 | E171: 38.5
B172: вода | D172: 231.0 | E172: 231.0
B173: соль иодированная | D173: 0.45 | E173: 0.45
B174: масло сливочное | D174: 3.0 | E174: 3.0
A175: Компот из свежих яблок | C175: 150 | F175: 0.12 | G175: 0.12 | H175: 11.00 | I175: 46.05 | J175: 0.68 | K175: №342 сб шк 2017
B176: яблоки свежие | D176: 27.4 | E176: 24
B177: сахар | D177: 5 | E177: 5
B178: вода | D178: 153 | E178: 153
A179: Хлеб пшеничный | C179: 20 | D179: 20 | E179: 20 | F179: 1.52 | G179: 0.16 | H179: 9.84 | I179: 47.00 | J179: 0.00 | K179: табл 6 стр 134,Дели + 2012
A180: Хлеб ржаной | C180: 35 | D180: 35 | E180: 35 | F180: 2.31 | G180: 0.42 | H180: 13.86 | I180: 69.30 | K180: табл 6 стр 144,Дели + 2012
A181: Итого: | C181: 575 | F181: =F134+F140+F152+F170+F175+F179+F180 -> 14.85 | G181: =G134+G140+G152+G170+G175+G179+G180 -> 15.67 | H181: 74.43 | I181: 504.88 | J181: 9.82
B182: ПОЛДНИК
A183: Запеканка творожная с повидлом | C183: 100/30 | F183: 10.92 | G183: 12.11 | H183: 47.10 | I183: 345.50 | J183: 1.83 | K183: № 251 сб дошк 2016
B184: Творог | D184: 92.9 | E184: 91.1
B185: крупа манная | D185: 6 | E185: 6
B186: Яйцо | D186: 4.8 | E186: 4
B187: Сахар | D187: 8 | E187: 8
B188: Сметана | D188: 4 | E188: 4
B189: Масло сливочное | D189: 4 | E189: 4.0
B190: Сухари панировочные | D190: 4 | E190: 4
B191: соль иодированная | D191: 0.5 | E191: 0.5
B192: повидло | D192: 30.6 | E192: 30
A193: Сок | C193: 125 | D193: 125 | E193: 125 | F193: 0.63 | H193: 12.62 | I193: 52.77 | J193: 2.50 | K193: Согласно сборника рецептур (дошкольн.) 2016г №418
A194: Итого: | C194: =C193+130 -> 255 | F194: =F193+F183 -> 11.55 | G194: =G183+G193 -> 12.11 | H194: =H183+H193 -> 59.72 | I194: =I183+I193 -> 398.27 | J194: =J183+J193 -> 4.33
A195: ВСЕГО: | C195: =C194+C181+C132+C127 -> 1351 | F195: =F194+F181+F132+F127 -> 42.72 | G195: =G194+G181+G132+G127 -> 47.87 | H195: 184.02 | I195: 1339.81 | J195: 16.63
A197: День 3 - ий
A198: Наименование блюд и | C198: Масса | D198: Кол - во | E198: Кол - во | F198: Пищевые вещества | I198: Энергетическая | J198: Витамин | K198: Сборник
A199: продуктов | C199: порции | D199: (в гр ) | E199: (в гр ) | I199: ценность | K199: рецептур
D200: брутто | E200: нетто | F200: белки | G200: жиры | H200: угл-ды | I200: Ккал | J200: С
B201: ЗАВТРАК
A202: Каша манная молочная с маслом сливочным | C202: 140/3 | F202: 4.24 | G202: 4.60 | H202: 22.61 | I202: 149.26 | J202: 0.82 | K202: ТТК №4Д
B203: Крупа манная | D203: 18.00 | E203: 18.00
... 674 more rows

Sheet 3-7 лет
A1: Утверждаю | H1: Согласовано
A2: Директор ООО"ФУДСОЦСЕРВИС" | H2: Руководитель дошкольной образовательной
A3: Харламова Э.Р. | H3: организации
C5: Примерное 10-дневное меню
C6: для организации питания детей в дошкольных учреждениях
C7: с 8-10,5 - часовым пребыванием от 3 до 7 лет
A9: День 1 - ый
A10: Наименование блюд и | C10: Масса | D10: Кол - во | E10: Кол - во | F10: Пищевые вещества | I10: Энергетическая | J10: Витамин | K10: Сборник рецептур
A11: продуктов | C11: порции | D11: (в гр ) | E11: (в гр ) | I11: ценность
D12: брутто | E12: нетто | F12: белки | G12: жиры | H12: угл-ды | I12: Ккал | J12: С
B13: ЗАВТРАК
A14: Каша "Дружба" молочная с маслом сливочным | C14: 180/3 | F14: 5.35 | G14: 5.41 | H14: 38.57 | I14: 225.00 | J14: 0.86 | K14: ТТК №7Д
B15: Крупа рисовая | D15: 13.50 | E15: 13.50
B16: Крупа пшенная | D16: 10.00 | E16: 10.00
B17: Молоко | D17: 90.00 | E17: 90.00
B18: Вода | D18: 68.00 | E18: 68.00
B19: Сахар | D19: 2.50 | E19: 2.50
B20: соль иодированная | D20: 0.50 | E20: 0.50
B21: Масло сливочное | D21: 3 | E21: 3
A22: Кофейный напиток с молоком | C22: 180/6 | F22: 2.85 | G22: 2.41 | H22: 5.99 | I22: 42.67 | J22: 1.17 | K22: №414 Дели 2016
B23: Кофейный напиток | D23: 2.50 | E23: 2.50
B24: Сахар | D24: 6.00 | E24: 6.00
B25: Молоко | D25: 90.00 | E25: 90.00
B26: Вода | D26: 108.00 | E26: 108.00
A27: Бутерброд с маслом сливочным | C27: 30/5 | F27: 2.29 | G27: 4.50 | H27: 15.49 | I27: 111.60 | K27: №1 сб дошк Дели2016
B28: Батон нарезной | D28: 30.00 | E28: 30.00
B29: Масло сливочное | D29: 5.00 | E29: 5.00
A30: Итого: | C30: 406 | F30: =SUM(F13:F29) -> 10.49 | G30: =SUM(G13:G29) -> 12.32 | H30: 60.05 | I30: 379.27 | J30: 2.03
B31: 2 - ой ЗАВТРАК
A32: Фрукты свежие(яблоки) | C32: 100 | D32: 100 | E32: 100 | F32: 0.40 | G32: 0.40 | H32: 9.80 | I32: 47.00 | J32: 10.00 | K32: №386 СБ
A33: Итого: | C33: 100 | F33: =F32 -> 0.40 | G33: =G32 -> 0.40 | H33: =H32 -> 9.80 | I33: =I32 -> 47.00 | J33: =J32 -> 10.00
B34: ОБЕД
A35: Икра морковная | C35: 50 | F35: 1.01 | G35: 0.05 | H35: 10.28 | I35: 45.6 | K35: ТТК
B36: морковь | D36: 50.00 | E36: 40.00
B37: лук репчатый | D37: 9.60 | E37: 8.00
B38: томатная паста | D38: 7.00 | E38: 7.00
B39: масло растительное | D39: 2.50 | E39: 2.50
B40: сахарный песок | D40: 0.50 | E40: 0.50
B41: соль иодированная | D41: 0.50 | E41: 0.50
A42: Суп вермишелевый с картофелем с мясными фрикадельками | C42: 180/15 | F42: 4.93 | G42: 3.80 | H42: 12.68 | I42: 114.56 | J42: 6.17 | K42: №103,сб дошк2016
B43: говядина (котлетное мясо б/к) | D43: 17.85 | E43: 17.1
B44: или фарш говяжий | D44: 17.95 | E44: 17.1
B45: Лук репчатый | D45: 1.79 | E45: 1.5
B46: Яйцо | D46: 1.44 | E46: 1.2
B47: Вода для фарша | D47: 1.5 | E47: 1.5
B48: соль иодированная | D48: 0.15 | E48: 0.15
B49: Масса полуфабриката | E49: 21.5
B50: масса готовых фрикаделек | E50: 15
B51: Картофель | D51: 79.80 | E51: 60.00
B52: Морковь | D52: 10.00 | E52: 8.00
B53: Лук репчатый | D53: 9.52 | E53: 8.00
B54: вермишель | D54: 8.00 | E54: 8.00
B55: Масло растительное | D55: 2.00 | E55: 2.00
B56: соль иодированная | D56: 0.70 | E56: 0.70
B57: Вода | D57: 132.00 | E57: 132.00
A58: Голубцы ленивые со сметанно-томатным соусом | C58: 120/30 | F58: 10.16 | G58: 10.45 | H58: 21.01 | I58: 201.98 | J58: 0.650 | K58: №314 сб дошк 2016
B59: капуста свежая | D59: 91 | E59: 72
B60: говядина (котлетное мясо б/к) | D60: 47 | E60: 45
B61: или фарш говяжий | D61: 45 | E61: 45
B62: крупа рисовая | D62: 6 | E62: 6
B63: масса отварного риса | E63: 17
B64: лук репчатый | D64: 12 | E64: 10
B65: масло растительное | D65: 3 | E65: 3
B66: масса припущенного лука | E66: 10
B67: яйцо | D67: 6 | E67: 5
B68: соль йодированная | D68: 0.6 | E68: 0.6
B69: масса полуфабриката | E69: 139
B70: масло растительное | D70: 1.00 | E70: 1.00
A71: соус сметанно-томатный
B72: мука пшеничная | D72: 2.25 | E72: 2.25
B73: вода | D73: 22.50 | E73: 22.50
B74: сметана | D74: 7.50 | E74: 7.50
B75: томатная паста | D75: 1.20 | E75: 1.20
B76: соль йодированная | D76: 0.30 | E76: 0.30
A77: Напиток из сухофруктов | C77: 180 | F77: 0.60 | G77: 0.08 | H77: 20.81 | I77: 68.18 | J77: 0.65 | K77: №394 Сб дошк 2016
B78: сухофрукты | D78: 15.30 | E78: 15.00
B79: Сахар | D79: 6.00 | E79: 6.00
B80: вода | D80: 183.00 | E80: 183.00
A81: Хлеб пшеничный | C81: 25 | D81: 25.00 | E81: 25.00 | F81: 1.90 | G81: 0.20 | H81: 12.30 | I81: 58.75 | J81: 0.00 | K81: табл 6 стр 134,Дели + 2012
A82: Хлеб ржаной | C82: 45 | D82: 45.00 | E82: 45.00 | F82: 2.97 | G82: 0.54 | H82: 17.82 | I82: 89.10 | K82: табл 6 стр 144,Дели + 2012
A83: Итого: | C83: =C82+C81+C77+120+30+180+15+C35 -> 645 | F83: =F82+F81+F77+F58+F42+F35 -> 21.56 | G83: =G82+G81+G77+G58+G42+G35 -> 15.12 | H83: 94.89 | I83: 578.17 | J83: 7.47
B84: ПОЛДНИК
A85: Котлеты рыбные | C85: 70 | F85: 8.54 | G85: 5.43 | H85: 10.26 | I85: 124.56 | J85: 0.22 | K85: №271 СБ дошк 2016
B86: рыба (минтай с/м БГ) | D86: 63.3 | E86: 46.2
B87: или фарш рыбный | D87: 48.51 | E87: 46.2
B88: соль иодированная | D88: 0.7 | E88: 0.7
B89: хлеб пшеничный | D89: 12.6 | E89: 12.6
B90: молоко | D90: 18.2 | E90: 18.2
B91: сухари панировочные | D91: 7 | E91: 7
B92: масса полуфабриката | E92: 81
B93: масло растительное | D93: 3 | E93: 3
A94: Пюре Картофельное | C94: 140 | F94: 2.86 | G94: 4.48 | H94: 19.08 | I94: 128.10 | J94: 16.95 | K94: № 339 СБ дошк 2016
B95: Картофель | D95: 159.60 | E95: 119.70
B96: Молоко | D96: 22.12 | E96: 21.00
B97: Масло сливочное | D97: 5.00 | E97: 5.00
B98: соль иодированная | D98: 0.52 | E98: 0.52
A99: Чай с сахаром | C99: 180/6 | F99: 0.06 | G99: 0.02 | H99: 6.02 | I99: 24.10 | J99: 0.03 | K99: № 410,411 сб дошк Дели 2016
B100: чай весовой | D100: 0.45 | E100: 0.45
B101: сахар | D101: 6.00 | E101: 6.00
B102: Вода | D102: 180.00 | E102: 180.00
A103: Хлеб пшеничный | C103: 30 | D103: 30.00 | E103: 30.00 | F103: 2.28 | G103: 0.24 | H103: 14.76 | I103: 70.50 | J103: 0.00 | K103: табл 6 стр 134,Дели + 2012
A104: Итого: | C104: 426 | F104: =F85+F94+F99+F103 -> 13.74 | G104: =G85+G94+G99+G103 -> 10.17 | H104: 50.12 | I104: 347.26 | J104: 17.20
A105: ВСЕГО: | C105: =C104+C83+C33+C30 -> 1577 | F105: =F104+F83+F33+F30 -> 46.20 | G105: =G104+G83+G33+G30 -> 38.01 | H105: 214.86 | I105: 1351.70 | J105: 36.70
A107: День 2- ой
A108: Наименование блюд и | C108: Масса | D108: Кол - во | E108: Кол - во | F108: Пищевые вещества | I108: Энергетическая | J108: Витамин | K108: Сборник
A109: продуктов | C109: порции | D109: (в гр ) | E109: (в гр ) | I109: ценность | K109: рецептур
D110: брутто | E110: нетто | F110: белки | G110: жиры | H110: угл-ды | I110: Ккал | J110: С
B111: ЗАВТРАК
A112: Каша полбяная молочная с маслом сливочным | C112: 180/3 | F112: 4.83 | G112: 7.26 | H112: 29.50 | I112: 202.64 | K112: ТТК №1Д
B113: Крупа полбяная | D113: 22.50 | E113: 22.50
B114: Молоко | D114: 90.00 | E114: 90.00
B115: вода | D115: 68.00 | E115: 68.00
B116: Сахар | D116: 2.50 | E116: 2.50
B117: соль иодированная | D117: 0.50 | E117: 0.50
B118: Масло сливочное | D118: 3.00 | E118: 3.00
A119: Какао с молоком | C119: 180/6 | F119: 3.67 | G119: 3.19 | H119: 5.99 | I119: 58.83 | J119: 1.43 | K119: №416 Дели2016
B120: Какао-порошок | D120: 2.00 | E120: 2.00
B121: Сахар | D121: 6.00 | E121: 6.00
B122: Молоко | D122: 110.00 | E122: 110.00
B123: Вода | D123: 80.00 | E123: 80.00
A124: Бутерброд с сыром, маслом сливочным | C124: 30/10/5 | F124: 4.93 | G124: 7.16 | H124: 15.49 | I124: 146.10 | K124: №3 сб дошк2016
B125: Батон нарезной | D125: 30 | E125: 30
B126: Сыр | D126: 10.2 | E126: 10
B127: Масло сливочное | D127: 5 | E127: 5
A128: Итого: | C128: =30+15+186+183 -> 414 | F128: =F112+F119+F124 -> 13.43 | G128: =G112+G119+G124 -> 17.61 | H128: 50.98 | I128: 407.57 | J128: 1.43
B129: 2 - ой ЗАВТРАК
A130: Кисломолочный напиток | C130: 180/3 | F130: 5.22 | G130: 4.50 | H130: 10.19 | I130: 102.00 | J130: 1.05 | K130: №420 Сб дошк 2016
A131: (Кефир,ряженка,катык) с сахаром | B131: кисломолочный напиток | D131: 185 | E131: 180
B132: сахарный песок | D132: 3 | E132: 3
A133: Итого: | C133: 183 | F133: =F130 -> 5.22 | G133: =G130 -> 4.50 | H133: 10.19 | I133: 102.00 | J133: 1.05
B134: ОБЕД
A135: Салат из картофеля с солеными огурцами | C135: 60 | F135: 0.73 | G135: 4.71 | H135: 5.38 | I135: 66.84 | J135: 3.62 | K135: №23 сб дошк2016
B136: огурцы соленые | D136: 32.90 | E136: 18.00
B137: картофель | D137: 32.90 | E137: 24.00
B138: морковь | D138: 15.36 | E138: 12.00
B139: лук репчатый | D139: 3.60 | E139: 3.00
B140: масло растительное | D140: 3.00 | E140: 3.00
A141: Борщ со свежей капустой, картофелем, со сметаной | C141: 180/7 | F141: 1.50 | G141: 4.77 | H141: 8.11 | I141: 87.64 | J141: 7.66 | K141: №88 сб дошк2016
B142: Капуста свежая | D142: 20.00 | E142: 16.00
B143: Картофель | D143: 21.28 | E143: 16.00
B144: Морковь | D144: 12.50 | E144: 10.00
B145: Лук репчатый | D145: 9.52 | E145: 8.00
B146: Свекла | D146: 41.00 | E146: 32.00
B147: Сахар | D147: 2.40 | E147: 2.40
B148: Томат-паста | D148: 1.00 | E148: 1.00
B149: Масло растительное | D149: 4.00 | E149: 4.00
B150: соль иодированная | D150: 0.70 | E150: 0.70
B151: Бульон | D151: 140.00 | E151: 140.00
B152: Сметана | D152: 7.00 | E152: 7.00
A153: Тефтели куриные запеченные в сметанно-томатном соусе | C153: 50/25 | F153: 6.23 | G153: 6.46 | H153: 7.36 | I153: 112.50 | J153: 0.38 | K153: ТТК 1001 от 10.06.2024
B154: цыплята - бройлеры с/м | D154: 50.00 | E154: 32.50
B155: или фарш куриный | D155: 34.20 | E155: 32.50
B156: хлеб пшеничный | D156: 7.50 | E156: 7.50
B157: Вода | D157: 10.00 | E157: 10.00
B158: Лук репчатый | D158: 12.00 | E158: 10.00
B159: Масло растительное | D159: 2.00 | E159: 2.00
B160: Масса припущенного лука | E160: 7.50
B161: Мука пшеничная | D161: 3.50 | E161: 3.50
B162: Масса полуфабриката | E162: 60.00
B163: Масло растительное | D163: 2.00 | E163: 2.00
B164: масса готовых тефтелей | E164: 50.00
B165: сметанно-томатный соус: | E165: 25.00
B166: сметана | D166: 6.25 | E166: 6.25
B167: Мука пшеничная | D167: 1.88 | E167: 1.88
B168: вода | D168: 18.75 | E168: 18.75
B169: томатная паста | D169: 1.25 | E169: 1.25
B170: соль иодированная | D170: 0.20 | E170: 0.20
A171: Макаронные изделия отварные с маслом сливочным | C171: 130/3 | F171: 4.93 | G171: 2.75 | H171: 27.70 | I171: 155.22 | J171: 0.00 | K171: №219 Сб дошк 2016
B172: макаронные изделия | D172: 45.5 | E172: 45.50
B173: вода | D173: 275.0 | E173: 275.0
B174: соль иодированная | D174: 0.5 | E174: 0.5
B175: Масло сливочное | D175: 3.0 | E175: 3.0
A176: Компот из свежих яблок | C176: 180 | F176: 0.14 | G176: 0.14 | H176: 13.20 | I176: 55.26 | J176: 0.81 | K176: 342 сб шк 2017
B177: яблоки свежие | D177: 31.92 | E177: 28.00
B178: вода | D178: 183.00 | E178: 183.00
B179: сахар | D179: 6.00 | E179: 6.00
A180: Хлеб пшеничный | C180: 25 | D180: 25.00 | E180: 25.00 | F180: 1.90 | G180: 0.20 | H180: 12.30 | I180: 58.75 | J180: 0.00 | K180: табл 6 стр 134,Дели + 2012
A181: Хлеб ржаной | C181: 45 | D181: 45.00 | E181: 45.00 | F181: 2.97 | G181: 0.54 | H181: 17.82 | I181: 89.10 | K181: табл 6 стр 144,Дели + 2012
A182: Итого: | C182: 705 | F182: =F135+F141+F153+F171+F176+F180+F181 -> 18.39 | G182: =G135+G141+G153+G171+G176+G180+G181 -> 19.57 | H182: 91.87 | I182: 625.31 | J182: 12.47
B183: ПОЛДНИК
A184: Запеканка творожная с повидлом | C184: 120/30 | F184: 13.34 | G184: 14.53 | H184: 49.10 | I184: 418.50 | J184: 2.14 | K184: №251, сбдошк 2016
B185: Творог | D185: 112.17 | E185: 110.00
B186: Крупа манная | D186: 6.90 | E186: 6.90
B187: Яйцо | D187: 6.00 | E187: 5.00
B188: сахарный песок | D188: 9.60 | E188: 9.60
B189: Сметана | D189: 4.80 | E189: 4.80
B190: Масло сливочное | D190: 4.80 | E190: 4.80
B191: Сухари панировочные | D191: 4.80 | E191: 4.80
B192: соль иодированная | D192: 0.60 | E192: 0.60
B193: повидло | D193: 30.60 | E193: 30.00
A194: Сок (или нектар) | C194: 180 | D194: 180.00 | E194: 180.00 | F194: 0.90 | H194: 18.18 | I194: 76.00 | J194: 3.60 | K194: №418 сб дошк 2016г
A195: в ассортименте
A196: Итого: | C196: =C194+120+30 -> 330 | F196: =F194+F184 -> 14.24 | G196: =G194+G184 -> 14.53 | H196: 67.28 | I196: 494.50 | J196: 5.74
A197: ВСЕГО: | C197: =C196+C182+C133+C128 -> 1632 | F197: =F196+F182+F133+F128 -> 51.28 | G197: =G196+G182+G133+G128 -> 56.21 | H197: 220.32 | I197: 1629.38 | J197: 20.69
A199: День 3 - ий
A200: Наименование блюд и | C200: Масса | D200: Кол - во | E200: Кол - во | F200: Пищевые вещества | I200: Энергетическая | J200: Витамин | K200: Сборник
A201: продуктов | C201: порции | D201: (в гр ) | E201: (в гр ) | I201: ценность | K201: рецептур
D202: брутто | E202: нетто | F202: белки | G202: жиры | H202: угл-ды | I202: Ккал | J202: С
B203: ЗАВТРАК
A204: Каша манная молочная с маслом сливочным | C204: 180/3 | F204: 5.45 | G204: 5.29 | H204: 29.06 | I204: 186.30 | J204: 1.05 | K204: ТТК №4Д
... 681 more rows

Sheet МЕНЮ РОТАЦИЯ
A1: 10 дневное меню с 8-10,5 часовым пребыванием
A3: 1-ая неделя
A4: 1 день | B4: 2 день | C4: 3 день | D4: 4 день | E4: 5 день
A5: Наименование блюд | B5: Наименование блюд | C5: Наименование блюд | D5: Наименование блюд | E5: Наименование блюд
A6: ЗАВТРАК
A7: Каша дружба молочная с маслом сливочным 140/3-180/3 | B7: Каша полбяная молочная с маслом сливочным 140/3-180/3 | C7: Каша манная молочная с маслом сливочным 140/3-180/3 | D7: Каша ячневая молочная с маслом сливочным 140/3-180/3 | E7: Суп молочный С ВЕРМИШЕЛЬЮ 180-200
A8: Кофейный напиток с молоком 180/6-180/6 | B8: Какао с молоком 180/6-180/6 | C8: Чай с молоком, сахаром 180/6-180/6 | D8: Кофейный напиток с молоком 180/6-180/6 | E8: Какао с молоком 150/5-180/6
A9: Бутерброд с маслом сливочным 25/5-30/5 | B9: Бутерброд с сыром, маслом сливочным 25/10/5-30/10/5 | C9: Бутерброд с маслом сливочным 25/5-30/5 | D9: Бутерброд с маслом сливочным с повидлом 25/5/10-30/5/10 | E9: Бутерброд с сыром, маслом сливочным 25/10/5-30/10/5
A10: 2-Й ЗАВТРАК
A11: Яблоко 100-100 | B11: Кефир с сахаром 150/2-180/3 | C11: Яблоко 100-100 | D11: Ряженка 150-180 | E11: Яблоко 100-100
A12: ОБЕД
A13: Икра морковная 30-50 | B13: Салат из картофеля с солеными огурцами 40-60 | C13: Салат из квашеной капусты 30-50 | D13: Салат из зеленого горошка к/с 30-50 | E13: Винегрет 40-60
A14: Суп вермишелевый с картофелем с мясными фрикадельками 150/10-180/15 | B14: Борщ со свежей капустой, картофелем (вода-бульон), со сметаной 150/7-180/7 | C14: Суп картофельный с горохом на бульоне из индейки 150-180 | D14: Суп картофельный с пшенной крупой (вода-бульон) 150-180 | E14: Суп из овощей с мясными фрикадельками, со сметаной 150/10/5-180/10/7
A15: Голубцы ленивые со сметанно-томатным соусом 110/20 и 120/30 | B15: Тефтели куриные запеченные в сметанно-томатном соусе 40/20-50/25 | C15: Плов из отварной индейки 150-200 | D15: Птица, тушеная в соусе с овощами 150-200 | E15: Котлеты рубленые из говядины 50-70
B16: Макаронные изделия с маслом сливочным 110/3-130/3 | E16: Каша гречневая рассыпчатая с маслом сливочным 110/2-130/2
A17: Напиток из сухофруктов 150-180 | B17: Компот из свежих яблок 150-180 | C17: Компот из урюка 150-180 | D17: Напиток из сухофруктов 150-180 | E17: Компот из свежих яблок 150-180
A18: Хлеб пшеничный 15-25 | B18: Хлеб пшеничный 20-25 | C18: Хлеб пшеничный 20-20 | D18: Хлеб пшеничный 0-25 | E18: Хлеб пшеничный 0-25
A19: Хлеб ржаной 35-45 | B19: Хлеб ржаной 35-45 | C19: Хлеб ржаной 35-45 | D19: Хлеб ржаной 35-45 | E19: Хлеб ржаной 40-45
A20: ПОЛДНИК
A21: Котлеты рыбные 50-70 | B21: Запеканка из творога с повидлом 100/30-120/30 | C21: Фрикадельки рыбные отварные 50-80 | D21: Омлет натуральный 130-150 | E21: Элеш с птицей 75-100
A22: Пюре картофельное 120-140 | C22: Картофель запеченный 120-140
A23: Чай с сахаром 150/5-180/6 | B23: Сок 125-180 | C23: Напиток из шиповника 150/5-180/6 | D23: Сок 125-180 | E23: Чай с сахаром и лимоном 150/5/5-180/6/7
A24: Хлеб пшеничный 20-30 | C24: Хлеб пшеничный 20-30 | D24: Хлеб пшеничный 25-30
A26: 2-ая неделя
A27: 6 день | B27: 7 день | C27: 8 день | D27: 9 день | E27: 10 день
A28: Наименование блюд | B28: Наименование блюд | C28: Наименование блюд | D28: Наименование блюд | E28: Наименование блюд
A29: ЗАВТРАК
A30: Каша пшенная молочная с маслом сливочным 140/3-180/3 | B30: Каша ячневая молочная с маслом сливочным 140/3-180/3 | C30: Каша манная молочная с маслом сливочным 140/3-180/3 | D30: Каша пшеничная молочная с маслом сливочным 140/3-180/3 | E30: Каша геркулесовая молочная с маслом сливочным 140/3-180/3
A31: Чай с молоком, сахаром 180/6-180/6 | B31: Кофейный напиток с молоком 180/6-180/6 | C31: Какао с молоком 180/6-180/6 | D31: Чай с молоком, сахаром 180/6-180/6 | E31: Кофейный напиток с молоком 180/6-180/6
A32: Бутерброд с маслом сливочным 25/5-30/5 | B32: Бутерброд с сыром, маслом сливочным 25/10/5-30/10/5 | C32: Бутерброд с маслом сливочным 25/5-30/5 | D32: Бутерброд с маслом сливочным 25/5-30/5 | E32: Бутерброд с сыром, маслом сливочным 25/10/5-30/10/5
A33: 2-Й ЗАВТРАК
A34: Катык 150-180 | B34: Яблоко 100-100 | C34: Кефир с сахаром 150/2-180/3 | D34: Яблоко 100-100 | E34: Сок 125-180
A35: ОБЕД
A36: Икра кабачковая 30-50 | B36: Салат из свеклы отварной с маслом сливочным 40-60 | C36: Салат из припущенной моркови с яблоками 40-60 | D36: Салат из квашеной капусты 30-50 | E36: Салат из свеклы отварной с маслом сливочным 40-60
A37: Рассольник ленинградский, со сметаной 150/5-180/7 | B37: Суп картофельный с клецками на бульоне из индейки 150-180 | C37: Щи со свежей капустой с картофелем(вода-бульон), со сметаной 150/5-180/7 | D37: Суп-лапша домашняя на курином булоне, с мясом птицы 150/10-180/10 | E37: Суп картофельный с рисовой крупой, с мясными фрикадельками, со сметаной 150/10/5-180/10/5
A38: Тефтели куриные (без риса) в сметанно-томатном соусе 40/-20-50/25 | B38: Гуляш из отварной индейки 30/30-40/40 | C38: Биточки Домашние 50-70 | D38: Жаркое из отварной птицы по-домашнему 150-180 | E38: Котлеты рыбные с маслом сливочным 50/2-70/3
A39: Вермишель отварная 110-130 | B39: Пюре гороховое (с картофелем) 120-140 | C39: Каша перловая рассыпчатая с овощами и маслом сливочным 110/2-130/2 | E39: Макаронные изделия отварные с овощами 110-130
A40: Напиток из сухофруктов 150-180 | B40: Компот из свежих яблок 150-180 | C40: Компот из урюка 150-180 | D40: Напиток из сухофруктов 150-180 | E40: Кисель 150-180
A41: Хлеб пшеничный 0-25 | B41: Хлеб пшеничный 0-25 | C41: Хлеб пшеничный 0-25 | D41: Хлеб пшеничный 0-25 | E41: Хлеб пшеничный 0-25
A42: Хлеб ржаной 35-45 | B42: Хлеб ржаной 35-45 | C42: Хлеб ржаной 35-45 | D42: Хлеб ржаной 35-45 | E42: Хлеб ржаной 35-45
A43: ПОЛДНИК
A44: Сырники творожные с повидлом 100/30-120/30 | B44: Рыба тушеная с овощами 40/20 | C44: Омлет натуральный 130-150 | D44: Королевская ватрушка 130-150 | E44: Каша вязкая гречневая с мясом и овощами 150-200
B45: Рис отварной рассыпчатый с маслом сливочным 110/2-130/2
A46: Сок 125-180 | B46: Напиток из шиповника 150/5-180/6 | C46: Сок 125-180 | D46: Чай с сахаром и лимоном 150/5/5-180/6/7 | E46: Напиток из шиповника 150/5-180/6
C47: Хлеб пшеничный 25-30 | E47: Хлеб пшеничный 20-30
